fUST/lending_fUST_20250713
["ID","MTS","AMOUNT","RATE_DAILY","PERIOD"]
[371738366,1752408665525,-796.49,0.00022191,2]
[371738367,1752408665535,-460.0,0.00022191,2]
[371738368,1752408665544,-593.15,0.00022191,2]
[371738369,1752408665553,-661.39,0.00022191,2]
[371738370,1752408665563,-1329.88,0.00022191,2]
[371738371,1752408665573,-476.56,0.00022191,2]
[371738372,1752408665582,-2597.34,0.00022191,2]
[371738373,1752408665591,-1127.18,0.00022191,2]
[371738374,1752408665601,-460.0,0.00022191,2]
[371738375,1752408665610,-707.62,0.00022191,2]
[371738376,1752408665620,-500.94,0.00022191,2]
[371738377,1752408665629,-460.0,0.00022191,2]
[371738378,1752408665639,-602.57,0.00022191,2]
[371738379,1752408665648,-939.64,0.00022191,2]
[371738380,1752408665657,-460.0,0.00022191,2]
[371738381,1752408665667,-1083.77,0.00022191,2]
[371738382,1752408665676,-525.69,0.00022191,2]
[371738383,1752408665685,-171.24980338,0.00022191,2]
[371738384,1752408665809,-299.37432291,0.00022191,2]
[371738385,1752408665819,-662.48,0.00022191,2]
[371738386,1752408665829,-460.0,0.00022191,2]
[371738387,1752408665839,-2526.29,0.00022191,2]
[371738388,1752408665849,-1097.19,0.00022191,2]
[371738389,1752408665858,-694.75,0.00022191,2]
[371738390,1752408665868,-578.96,0.00022191,2]
[371738391,1752408665961,-2650.39,0.000222,7]
[371738392,1752408665970,-457.67089896,0.00022234,2]
[371738393,1752408665979,-642.0,0.00022263,2]
[371738394,1752408665989,-855.24,0.000223,7]
[371738395,1752408665998,-642.0,0.00022302,2]
[371738396,1752408666008,-12598.31844336,0.000224,7]
[371738397,1752408666017,-500.0,0.00022412,2]
[371738398,1752408666027,-545.2,0.00022465,2]
[371738399,1752408666036,-591.03,0.00022465,2]
[371738400,1752408666046,-510.43,0.00022465,2]
[371738401,1752408666054,-526.59738041,0.00022465,2]
[371738402,1752408666508,-460.0,0.00016438,2]
[371738403,1752408666518,-1292.24,0.00019178,2]
[371738404,1752408666528,-1038.19318111,0.00019452,2]
[371738405,1752408666619,5000.0,0.0003,10]
[371738406,1752408666699,-254.04681889,0.00019452,2]
[371738407,1752408666709,-512.95318111,0.00019726,2]
[371738408,1752408666729,-48.00681889,0.00019726,2]
[371738409,1752408666739,-1292.24,0.00019726,2]
[371738410,1752408666749,-560.96,0.0002,2]
[371738411,1752408666758,-1292.24,0.0002,2]
[371738412,1752408666768,-560.96,0.00020273,2]
[371738413,1752408666778,-1292.24,0.00020273,2]
[371738414,1752408666788,-560.96,0.00020547,2]
[371738415,1752408666798,-1292.24,0.00020547,2]
[371738416,1752408666807,-560.96,0.00020821,2]
[371738417,1752408666816,-1292.24,0.00020821,2]
[371738418,1752408666825,-560.96,0.00021095,2]
[371738419,1752408666835,-1292.24,0.00021095,2]
[371738420,1752408666844,-560.96,0.00021369,2]
[371738421,1752408666853,-1292.24,0.00021369,2]
[371738422,1752408666863,-560.96,0.00021643,2]
[371738423,1752408666873,-1292.24,0.00021643,2]
[371738424,1752408666883,-560.96,0.00021917,2]
[371738425,1752408666892,-1292.24,0.00021917,2]
[371738426,1752408666902,-560.96,0.00022191,2]
[371738427,1752408666913,-1292.24,0.00022191,2]
[371738428,1752408666923,-154.84261959,0.00022465,2]
[371738429,1752408666932,-535.71,0.00022465,2]
[371738430,1752408666947,-1287.2510056,0.00022465,2]
[371738432,1752408675455,5000.0,0.0003,10]
[371738433,1752408685242,151.0,0.000241,10]
[371738434,1752408691653,5000.0,0.0003,10]
[371738435,1752408693082,614.269747,0.00013699,2]
[371738437,1752408707098,170.98261318,0.00016238,2]
[371738438,1752408707509,170.98261317,0.00016281,2]
[371738439,1752408708716,5000.0,0.0003,10]
[371738440,1752408716839,214.29528141,0.000253,30]
[371738441,1752408724110,5000.0,0.0003,10]
[371738442,1752408740038,5000.0,0.0003,10]
[371738443,1752408756218,1842.95169806,0.0003,10]
[371738444,1752408767651,483.2643994,0.00023969,10]
[371738445,1752408767689,483.2643994,0.00024245,10]
[371738446,1752408767724,483.2643994,0.00024521,11]
[371738447,1752408767754,483.2643994,0.00024797,11]
[371738448,1752408767785,483.2643994,0.00025072,12]
[371738449,1752408767836,483.2643994,0.00025348,13]
[371738450,1752408767918,483.2643994,0.00025624,13]
[371738451,1752408767999,483.2643994,0.000259,14]
[371738452,1752408805163,170.98261317,0.00016228,2]
[371738453,1752408827287,24900.0,0.00015383,2]
[371738454,1752408844949,154.818986,0.000261,10]
[371738455,1752408845282,154.818986,0.0002765,30]
[371738456,1752408861351,525.37265586,0.00028,10]
[371738457,1752408861701,525.37265586,0.00028,10]
[371738458,1752408896233,655.85266787,0.00016236,2]
[371738459,1752408922424,354.39389289,0.00023969,10]
[371738460,1752408922511,354.39389289,0.00024245,10]
[371738461,1752408922602,354.39389289,0.00024521,11]
[371738462,1752408922696,354.39389289,0.00024797,11]
[371738463,1752408922876,354.39389289,0.00025072,12]
[371738464,1752408922985,354.39389289,0.00025348,13]
[371738465,1752408923080,354.39389289,0.00025624,13]
[371738466,1752408923442,354.39389289,0.000259,14]
[371738469,1752408982037,200.0,0.0003,10]
[371738470,1752408982474,500.0,0.0002,10]
[371738471,1752408983466,179.0,0.00027397,24]
[371738472,1752409026182,105753.64393773,0.0003,10]
[371738473,1752409028698,1464.89,0.0003,10]
[371738477,1752409067801,200.0,0.0003,10]
[371738478,1752409077593,1000.0,0.0003,10]
[371738479,1752409077932,259.88885479,0.00023969,10]
[371738480,1752409078016,259.88885479,0.00024245,10]
[371738481,1752409078245,259.88885479,0.00024521,11]
[371738482,1752409078440,259.88885479,0.00024797,11]
[371738483,1752409078520,259.88885479,0.00025072,12]
[371738484,1752409078617,259.88885479,0.00025348,13]
[371738485,1752409080579,259.88885479,0.00025624,13]
[371738486,1752409081294,259.88885479,0.000259,14]
[371738487,1752409085105,1000.0,0.0003,10]
[371738488,1752409086699,1000.0,0.0003,10]
[371738489,1752409087727,1000.0,0.0003,10]
[371738490,1752409088555,1000.0,0.0003,10]
[371738491,1752409089299,1000.0,0.0003,10]
[371738492,1752409090067,1000.0,0.0003,10]
[371738493,1752409091038,1000.0,0.0003,10]
[371738494,1752409091838,1000.0,0.0003,10]
[371738495,1752409092670,1000.0,0.0003,10]
[371738496,1752409096911,1000.0,0.0003,10]
[371738497,1752409097825,1000.0,0.0003,10]
[371738498,1752409098818,1000.0,0.0003,10]
[371738499,1752409099830,1000.0,0.0003,10]
[371738500,1752409101794,573.87108436,0.00016236,2]
[371738501,1752409103307,1000.0,0.0003,10]
[371738502,1752409104347,1000.0,0.0003,10]
[371738503,1752409105246,1000.0,0.0003,10]
[371738504,1752409106510,1000.0,0.0003,10]
[371738505,1752409107880,1000.0,0.0003,10]
[371738506,1752409112042,1000.0,0.0003,10]
[371738507,1752409113477,1000.0,0.0003,10]
[371738508,1752409114124,1000.0,0.0003,10]
[371738509,1752409115213,1000.0,0.0003,10]
[371738510,1752409116705,1000.0,0.0003,10]
[371738511,1752409120267,1000.0,0.0003,10]
[371738512,1752409122033,1000.0,0.0003,10]
[371738513,1752409141131,1424.49,0.0003,10]
[371738514,1752409164624,525.37265586,0.00028,10]
[371738515,1752409165004,525.37265586,0.00028,10]
[371738517,1752409237869,190.58516018,0.00023969,10]
[371738518,1752409237901,190.58516018,0.00024245,10]
[371738519,1752409237938,190.58516018,0.00024521,11]
[371738520,1752409238004,190.58516018,0.00024797,11]
[371738521,1752409238036,190.58516018,0.00025072,12]
[371738522,1752409238069,190.58516018,0.00025348,13]
[371738523,1752409238102,190.58516018,0.00025624,13]
[371738524,1752409238134,190.58516018,0.000259,14]
[371738525,1752409308671,178.0,0.00028493,29]
[371738526,1752409308938,258.0,0.0002411,12]
[371738527,1752409311379,502.13719885,0.00016236,2]
[371738528,1752409342095,-670.37,0.00016318,3]
[371738529,1752409342116,-726.68,0.00016318,3]
[371738530,1752409342138,-363.34,0.00016318,3]
[371738531,1752409342159,-181.67,0.00016318,3]
[371738532,1752409342181,-545.05,0.00016318,3]
[371738533,1752409342203,-208.0,0.00016327,2]
[371738534,1752409342224,-300.0,0.00016327,2]
[371738535,1752409342247,-2004.89,0.00016328,2]
[371738536,1752409418541,500.0,0.0003,10]
[371738537,1752409440579,200.0,0.00024658,15]
[371738538,1752409456926,165.273809,0.00015419,2]
[371738539,1752409457142,165.273809,0.0001545,2]
[371738540,1752409459176,165.273809,0.00015481,2]
[371738541,1752409459380,165.273809,0.00015512,2]
[371738542,1752409459577,165.273809,0.00015543,2]
[371738543,1752409459968,165.273809,0.00015574,2]
[371738544,1752409460783,160.0,0.0002739,120]
[371738545,1752409470599,525.37265586,0.00028,10]
[371738546,1752409471028,525.37265586,0.00028,10]
[371738547,1752409476440,-800.15,0.00030031,17]
[371738548,1752409476465,-800.15,0.00030131,15]
[371738549,1752409476489,-800.15,0.00030231,22]
[371738550,1752409476512,-175.0,0.000303,120]
[371738551,1752409476536,-800.15,0.00030331,11]
[371738552,1752409476560,-800.15,0.00030631,27]
[371738553,1752409476584,-2010.63358296,0.00031,120]
[371738554,1752409476608,-800.15,0.00031131,18]
[371738555,1752409476632,-800.15,0.00031231,26]
[371738556,1752409476655,-180.0,0.00031781,48]
[371738557,1752409476679,-1000.0,0.00032,120]
[371738558,1752409476707,-3862.47,0.00032877,10]
[371738559,1752409476731,-160.16,0.00032877,15]
[371738560,1752409476756,-13517.24,0.000329,14]
[371738561,1752409476780,-202.54486188,0.00033,21]
[371738562,1752409476804,-500.0,0.00033,14]
[371738563,1752409476828,-500.0,0.00033,14]
[371738564,1752409476859,-3015.13429288,0.00033,15]
[371738565,1752409476891,-900.13814744,0.00033,120]
[371738566,1752409476921,-1000.0,0.00033,120]
[371738567,1752409476949,-1000.0,0.00034,120]
[371738568,1752409476977,-166.0,0.00034521,59]
[371738569,1752409477004,-1341.35609886,0.00034728,12]
[371738570,1752409477032,-500.0,0.00035,14]
[371738571,1752409477060,-401.03632889,0.00035,20]
[371738572,1752409477086,-440.44802056,0.00035,120]
[371738573,1752409477113,-3295.56226724,0.00035,120]
[371738574,1752409477141,-2472.87103925,0.00035,120]
[371738575,1752409477169,-210.79950448,0.00035,30]
[371738576,1752409477197,-500.0,0.00035,120]
[371738577,1752409477226,-2000.0,0.00035,120]
[371738578,1752409477253,-525.37265586,0.00035,120]
[371738579,1752409477280,-1000.0,0.00036,120]
[371738580,1752409477310,-206.77999953,0.000365,120]
[371738581,1752409477339,-175.0,0.000366,120]
[371738582,1752409477366,-185.0,0.00036712,59]
[371738583,1752409477392,-1015.30403306,0.000376,10]
[371738584,1752409477420,-767.2445769,0.00038,60]
[371738585,1752409477448,-1000.0,0.00038,120]
[371738586,1752409477475,-1599.0,0.00038,120]
[371738587,1752409477503,-2690.109,0.000383,120]
[371738588,1752409477530,-221.69,0.000383,120]
[371738589,1752409477558,-5000.0,0.000385,90]
[371738590,1752409477587,-99649.93256836,0.0003868,15]
[371738591,1752409477615,-203.0,0.00038904,59]
[371738592,1752409477641,-3668.94,0.000393,14]
[371738593,1752409477667,-200.0,0.00039375,120]
[371738594,1752409477695,-200.0,0.00039375,120]
[371738595,1752409477728,-200.0,0.00039375,120]
[371738596,1752409477757,-200.0,0.00039375,120]
[371738597,1752409477782,-207.5005,0.00039402,14]
[371738598,1752409477808,-202.80070167,0.00039726,15]
[371738599,1752409477834,-500.0,0.00039762,15]
[371738600,1752409477863,-251.4,0.00039762,15]
[371738601,1752409477889,-977.01993494,0.0003989,14]
[371738602,1752409477915,-1000.0,0.0004,120]
[371738603,1752409477941,-1106.31034471,0.0004,30]
[371738604,1752409477967,-235.99470443,0.0004,120]
[371738605,1752409477994,-355.75101253,0.0004,30]
[371738606,1752409478020,-486.9036566,0.0004,120]
[371738607,1752409478046,-342.57005724,0.0004,30]
[371738608,1752409478072,-1668.44402652,0.0004,120]
[371738609,1752409478099,-500.0,0.0004,120]
[371738610,1752409478126,-200.0,0.0004,120]
[371738611,1752409478153,-2000.0,0.0004,120]
[371738612,1752409478179,-3021.10406144,0.0004,60]
[371738613,1752409478205,-155.0,0.0004,120]
[371738614,1752409484931,2323.109,0.0004,14]
[371738615,1752409485813,3218.73,0.00032877,10]
[371738616,1752409497732,2682.27,0.00032877,10]
[371738617,1752409506411,154.818986,0.000329,10]
[371738618,1752409508761,2235.23,0.00032877,10]
[371738619,1752409508792,500.0,0.000394,30]
[371738620,1752409519034,642.6703937,0.00038674,15]
[371738621,1752409519123,439.37004902,0.00016236,2]
[371738622,1752409519292,642.6703937,0.00038986,15]
[371738623,1752409519611,642.6703937,0.00039345,15]
[371738624,1752409519902,1862.69,0.00032877,10]
[371738625,1752409520090,642.6703938,0.00039696,15]
[371738628,1752409530959,1552.24,0.00032877,10]
[371738629,1752409538871,2751.7,0.000398,14]
[371738630,1752409540021,50008.8895297,0.00015408,2]
[371738631,1752409541499,1293.54,0.00032877,10]
[371738632,1752409542408,10813.79,0.000349,14]
[371738633,1752409543586,10813.79,0.000395,14]
[371738634,1752409552817,1077.95,0.00032877,10]
[371738635,1752409564033,898.29,0.00032877,10]
[371738636,1752409568408,488.245826,0.0004,15]
[371738637,1752409575256,1226.14721678,0.0004,40]
[371738638,1752409575555,748.57,0.00032877,10]
[371738639,1752409586038,623.81,0.00032877,10]
[371738640,1752409589589,151.0,0.000235,10]
[371738641,1752409597582,519.84,0.00032877,10]
[371738642,1752409609041,433.2,0.00032877,10]
[371738645,1752409620692,361.0,0.00032877,10]
[371738646,1752409622839,172.0,0.00037808,104]
[371738647,1752409623101,155.0,0.00032877,56]
[371738648,1752409623430,229.0,0.00025205,15]
[371738650,1752409631665,300.84,0.00032877,10]
[371738652,1752409641989,250.7,0.00032877,10]
[371738654,1752409653413,208.91,0.00032877,10]
[371738667,1752409664626,174.09,0.00032877,10]
[371738668,1752409674849,215.42595214,0.00029,10]
[371738669,1752409675087,870.5,0.00032877,10]
[371738671,1752409706812,500.06234076,0.000328,10]
[371738672,1752409706867,702.01449581,0.0004,10]
[371738673,1752409715871,460.0,0.000328,10]
[371738675,1752409723188,153.848616,0.00025227,120]
[371738676,1752409723709,583.556259,0.00013699,2]
[371738677,1752409724214,6905.92996278,0.00015,2]
[371738678,1752409725230,500.0,0.00039,30]
[371738680,1752409726219,460.0,0.000328,10]
[371738681,1752409726385,11330.92344168,0.0001,2]
[371738682,1752409726411,3461.29395031,0.0001,2]
[371738683,1752409726435,2019.85015867,0.0001,2]
[371738689,1752409727241,2063.78,0.000398,14]
[371738690,1752409729206,384.44879284,0.00016236,2]
[371738691,1752409735830,460.0,0.000328,10]
[371738693,1752409742507,9612.26,0.000358,14]
[371738694,1752409742957,9612.26,0.000398,14]
[371738695,1752409744526,460.0,0.000328,10]
[371738696,1752409764090,2000.0,0.000328,30]
[371738697,1752409773438,525.37265586,0.00028,10]
[371738698,1752409774383,525.37265586,0.00028,10]
[371738699,1752409775223,525.37265586,0.00028,10]
[371738700,1752409787928,2000.0,0.000328,120]
[371738701,1752409794948,543.0,0.0004,120]
[371738702,1752409811578,474.77704087,0.00039,30]
[371738703,1752409828796,318.0,0.0004,14]
[371738704,1752409830217,318.0,0.0004,14]
[371738705,1752409830829,318.0,0.0004,14]
[371738710,1752409831374,318.0,0.0004,14]
[371738715,1752409831812,-300.0,0.00016327,2]
[371738716,1752409831822,-81042.85377499,0.00016328,2]
[371738726,1752409831954,318.0,0.0004,14]
[371738775,1752409832532,318.0,0.0004,14]
[371738798,1752409838005,-31983.71672769,0.00016328,2]
[371738801,1752409838438,-2123.83212,0.00016328,2]
[371738869,1752409840088,5000.0,0.000398,10]
[371739242,1752409845988,-14759.12911013,0.00016328,2]
[371739268,1752409917292,1547.83,0.000399,14]
[371739269,1752409931217,364.09221162,0.00016228,2]
[371739270,1752409939507,156.0,0.00039452,120]
[371739271,1752409941052,6728.58,0.000347,14]
[371739272,1752409941519,6728.58,0.000384,14]
[371739273,1752409942306,5800.0,0.0004,30]
[371739274,1752409949733,500.0,0.00039,30]
[371739275,1752409960172,1527.512218,0.0004,10]
[371739276,1752409988670,500.0,0.000394,30]
[371739277,1752410008928,213.89325201,0.00024038,10]
[371739278,1752410009011,213.89325201,0.00024348,11]
[371739279,1752410009083,213.89325201,0.00024659,11]
[371739280,1752410009153,213.89325201,0.00024969,12]
[371739281,1752410009236,213.89325201,0.00025279,12]
[371739282,1752410009313,213.89325201,0.0002559,13]
[371739283,1752410009401,213.89325201,0.000259,14]
[371739284,1752410078669,525.37265586,0.00028,10]
[371739285,1752410079038,525.37265586,0.00028,10]
[371739286,1752410099790,500.0,0.00039,30]
[371739287,1752410103926,17231.60883687,0.00015378,2]
[371739288,1752410103953,7668.39116313,0.00015378,2]
[371739289,1752410108185,1160.88,0.000399,14]
[371739290,1752410140344,5382.86,0.000362,14]
[371739291,1752410166836,163.98482654,0.00024038,10]
[371739292,1752410166938,163.98482654,0.00024348,11]
[371739293,1752410167053,163.98482654,0.00024659,11]
[371739294,1752410167158,163.98482654,0.00024969,12]
[371739295,1752410167235,163.98482654,0.00025279,12]
[371739296,1752410167305,163.98482654,0.0002559,13]
[371739297,1752410167411,163.98482654,0.000259,14]
[371739298,1752410177764,500.0,0.00039,30]
[371739299,1752410198820,500.0,0.00039,30]
[371739300,1752410213742,500.0,0.00039,30]
[371739301,1752410219954,500.0,0.00039,30]
[371739302,1752410241209,10070.72711131,0.0004,30]
[371739303,1752410339228,4844.58,0.000343,14]
[371739304,1752410339888,4844.58,0.00038,14]
[371739305,1752410381879,525.37265586,0.00028,10]
[371739306,1752410382737,525.37265586,0.00028,10]
[371739307,1752410386288,318.58068515,0.00016228,2]
[371739308,1752410445204,3858.70496187,0.0004,10]
[371739312,1752410478184,608.98609975,0.00024038,10]
[371739313,1752410478270,608.98609975,0.00024348,11]
[371739314,1752410478362,608.98609975,0.00024659,11]
[371739315,1752410478475,608.98609975,0.00024969,12]
[371739316,1752410478808,608.98609975,0.00025279,12]
[371739317,1752410478915,608.98609975,0.0002559,13]
[371739318,1752410478997,608.98609975,0.000259,14]
[371739319,1752410541295,5613.59,0.000363,14]
[371739320,1752410573917,500.0,0.0003,11]
[371739321,1752410585558,215.42595214,0.00029,10]
[371739322,1752410616250,278.75809955,0.00016228,2]
[371739323,1752410635940,2565.0,0.0004,10]
[371739324,1752410637811,563.54222303,0.00024038,10]
[371739325,1752410637884,563.54222303,0.00024348,11]
[371739326,1752410637969,563.54222303,0.00024659,11]
[371739327,1752410638065,563.54222303,0.00024969,12]
[371739328,1752410638133,563.54222303,0.00025279,12]
[371739329,1752410638217,563.54222303,0.0002559,13]
[371739330,1752410638299,563.54222303,0.000259,14]
[371739331,1752410639892,2565.0,0.0004,10]
[371739332,1752410640563,2565.0,0.0004,10]
[371739333,1752410641271,2565.0,0.0004,10]
[371739334,1752410641922,2565.0,0.0004,10]
[371739335,1752410657943,750.0,0.0003,20]
[371739336,1752410670192,15000.23978458,0.0004,10]
[371739337,1752410685722,525.37265586,0.00028,10]
[371739338,1752410686140,525.37265586,0.00028,10]
[371739339,1752410714676,1084.16292359,0.00016036,2]
[371739340,1752410741752,6790.17,0.000333,14]
[371739341,1752410742289,6790.17,0.000377,14]
[371739342,1752410783096,951.62,0.00037,14]
[371739344,1752410788590,554.378446,0.00013699,2]
[371739345,1752410791600,18550.1266,0.0004,10]
[371739346,1752410801893,432.04903765,0.00024038,10]
[371739347,1752410801976,432.04903765,0.00024348,11]
[371739348,1752410802084,432.04903765,0.00024659,11]
[371739349,1752410802395,432.04903765,0.00024969,12]
[371739350,1752410802489,432.04903765,0.00025279,12]
[371739351,1752410802580,432.04903765,0.0002559,13]
[371739352,1752410802655,432.04903765,0.000259,14]
[371739353,1752410805817,1000.0,0.0004,14]
[371739354,1752410840354,214.29528141,0.000253,30]
[371739355,1752410843739,243.91333708,0.00016228,2]
[371739356,1752410901290,500.0,0.00039,30]
[371739357,1752410939936,500.0,0.00039,30]
[371739358,1752410943895,5432.13,0.00033,14]
[371739359,1752410944357,5432.13,0.000375,14]
[371739360,1752410945579,500.0,0.00039,30]
[371739376,1752410959019,621.19623518,0.00024038,10]
[371739377,1752410959115,621.19623518,0.00024348,11]
[371739378,1752410959243,621.19623518,0.00024659,11]
[371739379,1752410959329,621.19623518,0.00024969,12]
[371739380,1752410959413,621.19623518,0.00025279,12]
[371739381,1752410959497,621.19623518,0.0002559,13]
[371739382,1752410959581,621.19623518,0.000259,14]
[371739449,1752410994764,525.37265586,0.00028,10]
[371739450,1752410995172,525.37265586,0.00028,10]
[371739451,1752411008401,500.0,0.00039,30]
[371739484,1752411032100,-172.66984287,0.00016316,2]
[371739486,1752411032111,-300.0,0.00016323,2]
[371739488,1752411032120,-300.0,0.00016323,2]
[371739490,1752411032130,-224.0,0.00016323,2]
[371739492,1752411032139,-383.0,0.00016323,2]
[371739494,1752411032151,-21253.6316136,0.00016324,2]
[371739807,1752411039099,500.0,0.00039,30]
[371739808,1752411039122,-9563.00791961,0.00016324,2]
[371739809,1752411039133,-255.20545262,0.00016328,2]
[371739810,1752411039143,-160.0,0.00016336,2]
[371739811,1752411039155,-17659.07792108,0.00016338,2]
[371739812,1752411039166,-717.92,0.00016415,3]
[371739813,1752411039176,-358.96,0.00016415,3]
[371739814,1752411039185,-179.48,0.00016415,3]
[371739815,1752411039195,-538.44,0.00016415,3]
[371739816,1752411039205,-460.0,0.00016438,2]
[371739817,1752411039215,-460.0,0.00016438,2]
[371739818,1752411039224,-460.0,0.00016438,2]
[371739819,1752411039236,-460.0,0.00016438,2]
[371739820,1752411039246,-460.0,0.00016438,2]
[371739821,1752411039258,-460.0,0.00016438,2]
[371739822,1752411039268,-460.0,0.00016438,2]
[371739823,1752411039278,-460.0,0.00016438,2]
[371739824,1752411039288,-511.29638607,0.00016438,2]
[371739825,1752411039298,-460.0,0.00016438,2]
[371739826,1752411039308,-460.0,0.00016438,2]
[371739827,1752411039318,-460.0,0.00016438,2]
[371739828,1752411039328,-460.0,0.00016438,2]
[371739829,1752411039337,-460.0,0.00016438,2]
[371739830,1752411039347,-460.0,0.00016438,2]
[371739831,1752411039357,-460.0,0.00016438,2]
[371739832,1752411039367,-460.0,0.00016438,2]
[371739834,1752411039548,-460.0,0.00016438,2]
[371739835,1752411039559,-460.0,0.00016438,2]
[371739836,1752411039569,-460.0,0.00016438,2]
[371739837,1752411039579,-460.0,0.00016438,2]
[371739838,1752411039589,-460.0,0.00016438,2]
[371739839,1752411039599,-460.0,0.00016438,2]
[371739840,1752411039609,-460.0,0.00016438,2]
[371739841,1752411039619,-460.0,0.00016438,2]
[371739842,1752411039628,-460.0,0.00016438,2]
[371739843,1752411039637,-482.67398777,0.00016438,2]
[371739844,1752411039647,-460.0,0.00016438,2]
[371739845,1752411039657,-468.03634932,0.00016438,2]
[371739846,1752411039667,-460.0,0.00016438,2]
[371739848,1752411039677,-460.0,0.00016438,2]
[371739849,1752411039687,-460.0,0.00016438,2]
[371739851,1752411039696,-460.0,0.00016438,2]
[371739852,1752411039706,-460.0,0.00016438,2]
[371739854,1752411039716,-460.0,0.00016438,2]
[371739855,1752411039726,-605.35007228,0.00016438,2]
[371739857,1752411039735,-460.0,0.00016438,2]
[371739858,1752411039745,-460.0,0.00016438,2]
[371739860,1752411039757,-460.0,0.00016438,2]
[371739862,1752411039767,-460.0,0.00016438,2]
[371739863,1752411039777,-460.0,0.00016438,2]
[371739865,1752411039787,-460.0,0.00016438,2]
[371739866,1752411039798,-460.0,0.00016438,2]
[371739868,1752411039808,-460.0,0.00016438,2]
[371739870,1752411039818,-460.0,0.00016438,2]
[371739871,1752411039829,-460.0,0.00016438,2]
[371739873,1752411039839,-460.0,0.00016438,2]
[371739874,1752411039848,-460.0,0.00016438,2]
[371739876,1752411039858,-460.0,0.00016438,2]
[371739877,1752411039867,-460.0,0.00016438,2]
[371739879,1752411039878,-460.0,0.00016438,2]
[371739881,1752411039887,-465.86727286,0.00016438,2]
[371739882,1752411039897,-460.0,0.00016438,2]
[371739884,1752411039907,-460.0,0.00016438,2]
[371739885,1752411039917,-460.0,0.00016438,2]
[371739887,1752411039927,-460.0,0.00016438,2]
[371739888,1752411039937,-460.0,0.00016438,2]
[371739890,1752411039947,-460.0,0.00016438,2]
[371739892,1752411039956,-460.0,0.00016438,2]
[371739893,1752411039966,-460.45786494,0.00016438,2]
[371739895,1752411039976,-508.12,0.00016438,2]
[371739896,1752411039985,-460.0,0.00016438,2]
[371739898,1752411039994,-460.0,0.00016438,2]
[371739900,1752411040007,-489.40462257,0.00016438,2]
[371739901,1752411040016,-460.0,0.00016438,2]
[371739903,1752411040026,-216.77210225,0.00016438,2]
[371739904,1752411040035,-460.0,0.00016438,2]
[371739906,1752411040045,-460.0,0.00016438,2]
[371739908,1752411040055,-460.0,0.00016438,2]
[371739909,1752411040065,-460.0,0.00016438,2]
[371739911,1752411040074,-460.0,0.00016438,2]
[371739912,1752411040084,-460.0,0.00016438,2]
[371739914,1752411040094,-460.0,0.00016438,2]